bitfinex-derivatives/quotes_SOLF0:USTF0_20250404
["timestamp","ask_amount","ask_price","bid_price","bid_amount"]
[1743804463698,0.06124785,122.94,122.93,8.1378]
[1743804466596,0.06124785,122.94,122.93,37.2778]
[1743804481207,0.06124785,122.94,122.93,47.95458752]
[1743804481906,10.67678752,122.99,122.93,39.81678752]
[1743804482106,9.91940964,122.98,122.95,10.67678752]
[1743804482296,9.91940964,122.97,122.95,10.67678752]
[1743804482493,8.1342,122.99,122.97,8.1351]
[1743804482693,3.67209304,122.98,122.97,8.1351]
[1743804483402,3.67209304,122.98,122.96,8.19420313]
[1743804483604,3.67209304,122.97,122.96,8.19420313]
[1743804484509,3.67209304,122.97,122.96,37.31420313]
[1743804484808,0.05481421,122.99,122.98,8.1344]
[1743804485008,3.73057637,122.99,122.98,8.1344]
[1743804486206,0.05481421,122.99,122.98,8.1344]
[1743804487216,8.1309,123.04,122.97,10.67678752]
[1743804487399,8.1309,123.04,123.0,10.67678752]
[1743804487400,3.6435648,123.03,123.0,10.67678752]
[1743804487605,3.6435648,123.02,123.0,39.79678752]
[1743804487806,8.1312,123.03,123.01,8.132]
[1743804488304,8.18598628,123.03,123.01,8.18661694]
[1743804489708,11.75128127,123.02,123.01,0.05461694]
[1743804490210,3.61948127,123.02,123.01,0.05461694]
[1743804490413,8.18628628,123.03,123.01,0.05461694]
[1743804490711,0.05478628,123.03,123.02,8.1318]
[1743804490912,3.67369578,123.03,123.02,8.1318]
[1743804491212,0.05478628,123.03,123.02,8.1318]
[1743804492313,0.05478628,123.03,123.02,18.80858752]
[1743804494412,8.1288,123.07,123.04,8.1305]
[1743804494611,8.1288,123.07,123.04,47.92728752]
[1743804494813,8.1288,123.07,123.04,39.79678752]
[1743804495012,8.1288,123.07,123.05,8.1295]
[1743804495212,8.1288,123.07,123.04,39.79678752]
[1743804495415,8.1293,123.06,123.04,39.79678752]
[1743804495719,8.1293,123.06,123.04,39.85226042]
[1743804498723,0.05319585,123.07,123.04,39.85226042]
[1743804499511,8.1296,123.06,123.04,39.85226042]
[1743804499812,0.05319585,123.07,123.04,39.85226042]
[1743804500013,8.1298,123.06,123.04,39.85226042]
[1743804500508,0.05319585,123.07,123.04,39.85226042]
[1743804500706,8.1297,123.06,123.04,47.98266042]
[1743804501225,8.1297,123.06,123.04,39.85226042]
[1743804501824,0.05319585,123.07,123.04,39.85226042]
[1743804503218,8.1298,123.05,123.04,39.85226042]
[1743804505032,8.1295,123.06,123.04,47.98266042]
[1743804506533,0.05319585,123.07,123.05,8.1295]
[1743804506534,8.18189585,123.07,123.05,8.1295]
[1743804508526,0.05319585,123.07,123.06,10.67678752]
[1743804508828,10.67678752,123.13,123.06,10.67678752]
[1743804509031,8.1263,123.11,123.08,18.80408752]
[1743804509326,8.1263,123.11,123.07,31.3121]
[1743804509528,8.1256,123.12,123.08,10.67678752]
[1743804509918,0.05202141,123.11,123.09,0.05874362]
[1743804510118,0.05202141,123.11,123.1,8.1262]
[1743804510332,0.05202141,123.11,123.1,47.90298752]
[1743804510632,8.1246,123.13,123.1,39.77678752]
[1743804510931,8.1246,123.13,123.1,47.90318752]
[1743804511631,8.1239,123.14,123.11,8.1256]
[1743804511831,0.06219803,123.13,123.12,10.67678752]
[1743804512332,0.05164577,123.14,123.12,18.80168752]
[1743804512522,0.05164577,123.14,123.13,29.1]
[1743804512731,10.67678752,123.19,123.14,10.67678752]
[1743804513034,8.1227,123.16,123.14,10.67678752]
[1743804513223,8.1227,123.16,123.14,39.75678752]
[1743804513731,8.1227,123.16,123.14,39.81090119]
[1743804513936,8.18229737,123.16,123.14,39.81090119]
[1743804514324,8.18229737,123.16,123.14,47.93480119]
[1743804514527,8.18229737,123.16,123.14,39.81090119]
[1743804514942,8.18229737,123.16,123.14,47.93460119]
[1743804515234,0.05959737,123.16,123.14,39.81090119]
[1743804515830,0.05959737,123.16,123.15,8.1232]
[1743804517227,39.75678752,123.23,123.17,8.1217]
[1743804517527,39.75678752,123.23,123.18,10.67678752]
[1743804517831,10.67678752,123.23,123.18,10.67678752]
[1743804518235,8.119,123.22,123.19,18.79738752]
[1743804518435,8.17768516,123.22,123.19,18.85267871]
[1743804518630,8.17768516,123.22,123.19,10.73207871]
[1743804518825,8.17768516,123.22,123.19,18.85227871]
[1743804519432,8.17768516,123.22,123.2,29.08]
[1743804519629,8.1193,123.21,123.2,29.08]
[1743804520135,0.05868516,123.22,123.2,29.08]
[1743804520439,0.05868516,123.22,123.21,10.67678752]
[1743804521736,0.05868516,123.22,123.2,29.08]
[1743804522329,8.1193,123.21,123.2,29.08]
[1743804522730,0.05868516,123.22,123.19,10.73207871]
[1743804523443,8.1199,123.2,123.19,10.73207871]
[1743804524938,8.1196,123.21,123.19,10.73207871]
[1743804525744,8.1199,123.2,123.19,10.73207871]
[1743804525946,0.05868516,123.22,123.19,10.73207871]
[1743804526638,8.1193,123.21,123.19,10.73207871]
[1743804527447,8.1199,123.2,123.19,10.73207871]
[1743804528340,8.1196,123.21,123.19,10.73207871]
[1743804528545,0.05868516,123.22,123.19,0.05529119]
[1743804528848,8.1199,123.2,123.19,0.05529119]
[1743804529441,8.1195,123.21,123.19,0.05529119]
[1743804529945,8.1195,123.21,123.19,8.17559119]
[1743804530148,8.17748516,123.22,123.19,8.17559119]
[1743804531748,8.17748516,123.22,123.2,8.1199]
[1743804532046,0.05868516,123.22,123.2,8.1199]
[1743804532251,0.05868516,123.22,123.2,18.79668752]
[1743804535148,0.05868516,123.22,123.19,8.17569119]
[1743804536844,8.1193,123.21,123.19,8.17569119]
[1743804538248,8.17768516,123.22,123.19,8.17569119]
[1743804539852,0.05868516,123.22,123.19,0.05529119]
[1743804540750,0.05868516,123.22,123.21,8.1193]
[1743804543352,0.05868516,123.22,123.21,37.1793]
[1743804547760,0.05868516,123.22,123.21,8.1193]
[1743804548348,8.17728516,123.22,123.2,18.79628752]
[1743804548752,0.05868516,123.22,123.21,8.1193]
[1743804552955,0.05868516,123.22,123.2,10.67678752]
[1743804553147,10.73547268,123.22,123.19,0.05529119]
[1743804553356,3.62266138,123.21,123.19,0.05529119]
[1743804553555,8.1199,123.2,123.19,0.05529119]
[1743804553758,10.73547268,123.22,123.19,0.05529119]
[1743804553960,3.6229908,123.21,123.19,0.05529119]
[1743804554154,0.05868516,123.22,123.19,10.73207871]
[1743804554464,0.05868516,123.22,123.2,8.1194]
[1743804554770,8.17728516,123.22,123.2,8.1194]
[1743804556367,0.05868516,123.22,123.21,8.1193]
[1743804556564,3.69068818,123.22,123.21,8.1193]
[1743804556863,11.80928818,123.22,123.2,8.1195]
[1743804557065,8.17728516,123.22,123.2,8.1195]
[1743804557265,3.57827242,123.21,123.2,8.1195]
[1743804557465,8.17728516,123.22,123.2,8.1195]
[1743804559169,3.58292973,123.21,123.2,8.1195]
[1743804559869,8.17728516,123.22,123.2,8.1195]
[1743804560163,3.58514616,123.21,123.2,8.1195]
[1743804567572,61.21648013,123.3,123.19,39.77207871]
[1743804567775,5.52755048,123.27,123.25,10.67678752]
[1743804567969,5.52755048,123.26,123.25,10.67678752]
[1743804568170,8.1149,123.28,123.25,18.79278752]
[1743804568372,8.1149,123.28,123.25,10.67678752]
[1743804568671,8.1149,123.28,123.26,8.1156]
[1743804568871,0.02802087,123.28,123.27,10.67678752]
[1743804569375,8.1121,123.32,123.27,39.71678752]
[1743804569575,11.24729503,123.33,123.29,10.67678752]
[1743804569789,11.24729503,123.33,123.31,18.78878752]
[1743804569968,11.24729503,123.33,123.31,10.67678752]
[1743804570380,19.35889503,123.33,123.31,10.67678752]
[1743804570677,19.35889503,123.33,123.31,0.06092646]
[1743804571173,11.24729503,123.33,123.31,0.06092646]
[1743804571566,8.112,123.32,123.31,0.06092646]
[1743804571765,11.24729503,123.33,123.31,0.06092646]
[1743804572268,19.35889503,123.33,123.31,0.06092646]
[1743804572770,147.84832792,123.36,123.31,0.06092646]
[1743804572771,12.88078752,123.36,123.31,0.06092646]
[1743804573378,8.1119,123.33,123.31,0.06092646]
[1743804573976,12.88078752,123.36,123.31,0.06092646]
[1743804573977,8.1109,123.34,123.31,0.06092646]
[1743804574180,8.1109,123.34,123.31,10.73771398]
[1743804574480,8.1109,123.34,123.31,18.85021398]
[1743804574883,8.1114,123.33,123.31,18.85021398]
[1743804576576,12.88078752,123.36,123.31,10.73771398]
[1743804576878,12.88078752,123.36,123.31,0.06092646]
[1743804576879,10.67678752,123.34,123.31,0.06092646]
[1743804578182,8.112,123.32,123.31,0.06092646]
[1743804578675,8.1117,123.33,123.31,0.06092646]
[1743804578874,8.1117,123.33,123.31,8.17342646]
[1743804579575,8.1108,123.34,123.31,8.17342646]
[1743804579780,29.02,123.35,123.32,8.1119]
[1743804579970,12.88078752,123.36,123.32,8.1119]
[1743804580173,8.1104,123.35,123.32,8.1119]
[1743804582782,8.1107,123.34,123.32,8.1119]
[1743804583079,8.1107,123.34,123.31,8.17332646]
[1743804583480,8.1107,123.34,123.32,8.112]
[1743804585082,8.1107,123.34,123.31,8.17322646]
[1743804586481,8.1107,123.34,123.32,8.1119]
[1743804588284,8.1104,123.35,123.32,8.1119]
[1743804590888,8.1107,123.34,123.32,8.1119]
[1743804591089,12.88078752,123.36,123.32,8.1119]
[1743804591590,8.1104,123.35,123.32,8.1119]
[1743804591790,8.1104,123.35,123.33,8.1113]
[1743804592385,8.1104,123.35,123.32,8.1116]
[1743804593483,8.1104,123.35,123.33,8.1113]
[1743804594389,8.1107,123.34,123.32,8.1116]
[1743804594589,12.88078752,123.36,123.31,0.06092646]
[1743804595090,8.1103,123.35,123.33,8.1111]
[1743804599694,20.99058752,123.36,123.31,0.06092646]
[1743804599994,18.78658752,123.36,123.31,0.06092646]
[1743804600195,18.78658752,123.36,123.34,8.1103]
[1743804600590,18.78658752,123.36,123.34,8.16535095]
[1743804600992,8.1098,123.36,123.34,8.16535095]
[1743804601291,29.02,123.37,123.34,8.16535095]
[1743804601497,29.02,123.37,123.34,0.05505095]
[1743804601696,39.69678752,123.38,123.34,0.05505095]
[1743804601898,8.1098,123.36,123.34,8.16565095]
[1743804602198,10.67678752,123.38,123.34,8.16565095]
[1743804602400,10.67678752,123.38,123.35,8.1097]
[1743804603796,8.109,123.37,123.35,8.1097]
[1743804605195,18.78518752,123.38,123.36,8.1093]
[1743804605402,8.1084,123.38,123.36,8.1093]
[1743804606600,8.1084,123.38,123.35,8.1096]
[1743804607307,8.1084,123.38,123.34,10.73183847]
[1743804608100,8.1088,123.37,123.35,8.1097]
[1743804610600,5.0031,123.42,123.34,10.73183847]
[1743804610803,10.67678752,123.4,123.34,39.67678752]
[1743804611106,29.0,123.41,123.37,0.05656821]
[1743804611303,8.1071,123.4,123.37,8.16476821]
[1743804612104,8.1071,123.4,123.38,8.108]
[1743804612308,8.1064,123.41,123.38,10.67678752]
[1743804613604,8.1064,123.41,123.38,18.78448752]
[1743804613806,10.67678752,123.42,123.37,0.05656821]
[1743804614007,10.67678752,123.4,123.37,0.05656821]
[1743804614907,29.0,123.41,123.37,0.05656821]
[1743804615111,8.1079,123.39,123.37,0.05656821]
[1743804615609,39.67678752,123.41,123.37,0.05656821]
[1743804616205,8.1081,123.38,123.37,0.05656821]
[1743804616401,39.67678752,123.41,123.37,0.05656821]
[1743804616806,8.1078,123.39,123.37,0.05656821]
[1743804617009,8.1078,123.39,123.37,8.16526821]
[1743804617209,8.107,123.4,123.37,0.05656821]
[1743804617410,10.67678752,123.43,123.38,10.67678752]
[1743804617610,10.67678752,123.43,123.39,37.1069]
[1743804617806,8.106,123.42,123.39,37.1069]
[1743804618014,8.106,123.42,123.4,0.05298785]
[1743804618712,10.67678752,123.43,123.4,0.05298785]
[1743804619105,10.67678752,123.41,123.4,0.05298785]
[1743804619816,18.78288752,123.41,123.4,0.05298785]
[1743804623613,8.1061,123.41,123.4,0.05298785]
[1743804623813,8.1057,123.42,123.4,0.05298785]
[1743804624623,10.67678752,123.44,123.4,0.05298785]
[1743804624921,10.67678752,123.44,123.4,8.15948785]
[1743804625115,8.1049,123.43,123.4,8.15948785]
[1743804625313,10.67678752,123.44,123.4,8.15948785]
[1743804625620,10.67678752,123.44,123.41,8.106]
[1743804625818,8.1051,123.43,123.41,8.106]
[1743804626120,8.1051,123.43,123.4,0.05298785]
[1743804626322,10.67678752,123.44,123.4,0.05298785]
[1743804626323,8.1056,123.42,123.4,8.15938785]
[1743804626522,10.67678752,123.44,123.4,0.05298785]
[1743804628725,8.1061,123.41,123.4,0.05298785]
[1743804629024,10.67678752,123.44,123.4,0.05298785]
[1743804629418,8.1051,123.43,123.4,0.05298785]
[1743804630530,8.1051,123.43,123.41,8.106]
[1743804630826,8.1051,123.43,123.4,0.05298785]
[1743804631127,8.1051,123.43,123.4,8.15938785]
[1743804631312,10.67678752,123.44,123.4,0.05298785]
[1743804631916,8.1059,123.42,123.4,0.05298785]
[1743804632121,10.67678752,123.44,123.4,0.05298785]
[1743804632321,10.67678752,123.44,123.4,8.15928785]
[1743804632521,8.1051,123.43,123.4,8.15928785]
[1743804633129,8.1051,123.43,123.4,18.83607537]
[1743804634324,8.1051,123.43,123.4,47.83607537]
[1743804635430,8.1055,123.42,123.4,47.83607537]
[1743804638234,15.09998752,123.46,123.4,39.72977537]
[1743804638532,10.67678752,123.44,123.4,39.72977537]
[1743804640133,8.1057,123.42,123.4,47.83647537]
[1743804642638,10.67678752,123.44,123.4,47.83647537]
[1743804642639,10.67678752,123.44,123.4,39.72977537]
[1743804643140,8.1057,123.42,123.4,47.83617537]
[1743804643436,10.67678752,123.44,123.4,29.05298785]
[1743804643742,8.1059,123.42,123.4,8.15968785]
[1743804644338,10.67678752,123.44,123.4,0.05298785]
[1743804644941,8.1058,123.42,123.4,8.15968785]
[1743804647948,8.1058,123.42,123.41,8.1061]
[1743804648241,8.1058,123.42,123.4,0.05298785]
[1743804648436,8.1058,123.42,123.4,8.15948785]
[1743804649739,10.67678752,123.44,123.4,0.05298785]
[1743804649938,33.4032,123.46,123.4,0.05298785]
[1743804649939,10.67678752,123.42,123.4,0.05298785]
[1743804650336,8.1061,123.41,123.4,0.05298785]
[1743804651942,18.78268752,123.42,123.4,0.05298785]
[1743804653132,8.1061,123.41,123.4,0.05298785]
[1743804655542,18.78268752,123.42,123.4,0.05298785]
[1743804657142,8.1061,123.41,123.4,0.05298785]
[1743804665350,18.78268752,123.42,123.4,0.05298785]
[1743804665548,8.1059,123.42,123.4,0.05298785]
[1743804665744,10.67678752,123.44,123.4,0.05298785]
[1743804665950,10.67678752,123.44,123.4,8.15938785]
[1743804666145,8.1055,123.42,123.4,8.15938785]
[1743804669751,8.1055,123.42,123.4,0.05298785]
[1743804670156,10.67678752,123.44,123.4,0.05298785]
[1743804670650,10.67678752,123.42,123.4,0.05298785]
[1743804670856,8.1061,123.41,123.4,0.05298785]
[1743804672552,8.1061,123.41,123.4,8.785e-05]
[1743804672757,8.1094,123.36,123.34,18.78698752]
[1743804673464,10.67678752,123.38,123.33,10.3674]
[1743804673752,10.67678752,123.38,123.34,0.05616163]
[1743804673957,0.05298785,123.37,123.34,0.05616163]
[1743804674866,10.67678752,123.36,123.34,0.05616163]
[1743804675248,8.11,123.35,123.34,0.05616163]
[1743804677659,8.1097,123.36,123.34,0.05616163]
[1743804678345,0.05298785,123.37,123.34,0.05616163]
[1743804678658,8.11,123.35,123.34,0.05616163]
[1743804681061,8.1097,123.36,123.34,0.05616163]
[1743804681555,0.05298785,123.37,123.34,0.05616163]
[1743804681754,8.1094,123.36,123.34,0.05616163]
[1743804682163,0.05298785,123.37,123.34,0.05616163]
[1743804682380,8.11,123.35,123.34,0.05616163]
[1743804686566,0.05298785,123.37,123.34,39.71294915]
[1743804686871,10.67678752,123.42,123.37,8.1087]
[1743804687674,8.1073,123.4,123.37,8.1087]
[1743804687971,8.1073,123.4,123.38,0.05187312]
[1743804688572,8.1074,123.39,123.38,0.05187312]
[1743804694371,8.1071,123.4,123.38,0.05187312]
[1743804695978,12.76598752,123.43,123.38,8.15967312]
[1743804696282,10.67678752,123.44,123.38,10.72866064]
[1743804696584,8.106,123.42,123.39,10.2381]
[1743804697073,8.1062,123.41,123.39,10.2381]
[1743804697268,10.67678752,123.44,123.39,2.131]
[1743804699274,8.1068,123.4,123.39,2.131]
[1743804700975,8.1065,123.41,123.39,10.2383]
[1743804703581,8.1057,123.42,123.39,10.2383]
[1743804704090,8.1064,123.41,123.39,2.131]
[1743804704489,8.1064,123.41,123.39,10.2384]
[1743804706392,8.1064,123.41,123.39,2.131]
[1743804706988,8.1068,123.4,123.39,2.131]
[1743804707197,10.67678752,123.44,123.39,2.131]
[1743804709194,8.1066,123.41,123.39,2.131]
[1743804710200,8.1058,123.42,123.39,2.131]
[1743804710789,8.1058,123.42,123.4,18.78318752]
[1743804711497,10.67678752,123.44,123.4,10.67678752]
[1743804711902,10.67678752,123.44,123.41,0.05208066]
[1743804712101,8.1054,123.42,123.41,0.05208066]
[1743804727712,18.78198752,123.43,123.41,0.05208066]
[1743804730016,10.67678752,123.43,123.41,8.15818066]
[1743804730510,18.78168752,123.43,123.41,8.15818066]
[1743804730700,18.78168752,123.43,123.41,0.05208066]
[1743804731412,18.78168752,123.43,123.41,8.15788066]
[1743804732612,18.78168752,123.43,123.41,0.05208066]
[1743804733213,18.78168752,123.43,123.41,8.15808066]
[1743804733512,18.78168752,123.43,123.41,0.05208066]
[1743804735720,18.78168752,123.43,123.41,8.15818066]
[1743804736111,8.1054,123.42,123.41,0.05208066]
[1743804738722,18.78198752,123.43,123.41,0.05208066]
[1743804740215,8.1052,123.43,123.41,0.05208066]
[1743804743514,8.1052,123.43,123.41,8.15808066]
[1743804743829,8.1044,123.44,123.41,8.15808066]
[1743804744628,8.1049,123.43,123.41,8.15808066]
[1743804747226,8.1049,123.43,123.41,0.05208066]
[1743804753241,8.1049,123.43,123.41,8.15798066]
[1743804754042,8.1054,123.42,123.41,0.05208066]
[1743804770053,18.78198752,123.43,123.41,0.05208066]
[1743804773556,8.1052,123.43,123.41,0.05208066]
[1743804773758,8.1054,123.42,123.41,0.05208066]
[1743804774156,10.67678752,123.44,123.41,0.05208066]
[1743804774554,8.1054,123.43,123.41,0.05208066]
[1743804774754,10.67678752,123.44,123.41,0.05208066]
[1743804775256,8.1054,123.42,123.41,0.05208066]
[1743804778264,18.78218752,123.42,123.41,0.05208066]
[1743804792782,24.033426,123.42,123.41,0.05208066]
[1743804795691,5.25123848,123.42,123.41,0.05208066]
[1743804796687,13.35663848,123.42,123.41,0.05208066]
[1743804797074,5.25123848,123.42,123.41,0.05208066]
[1743804797769,13.35663848,123.42,123.41,0.05208066]
[1743804799290,19.36641657,123.42,123.41,0.05208066]
[1743804803191,30.04320409,123.42,123.41,0.05208066]
[1743804803690,30.04320409,123.42,123.41,0.00334505]
[1743804804774,33.81886471,123.42,123.41,0.00334505]
[1743804805695,33.45107059,123.42,123.41,0.00334505]
[1743804806493,33.45088646,123.42,123.41,0.00334505]
[1743804808288,33.24480878,123.42,123.41,0.00334505]
[1743804811997,33.24409099,123.42,123.41,0.00334505]
[1743804813897,33.24387881,123.42,123.41,0.00334505]
[1743804815198,27.99264033,123.42,123.41,0.00334505]
[1743804815789,27.99251423,123.42,123.41,0.00334505]
[1743804817497,24.42314347,123.42,123.41,0.00334505]
[1743804817701,27.90838451,123.42,123.41,0.00334505]
[1743804818401,33.14235835,123.42,123.41,0.00334505]
[1743804819402,33.14290021,123.42,123.41,0.00334505]
[1743804820389,8.1087,123.37,123.36,4.2939]
[1743804820590,13.34267384,123.37,123.36,4.2939]
[1743804821400,16.82801036,123.37,123.36,4.2939]
[1743804821701,23.45521525,123.37,123.36,4.2939]
[1743804822102,19.96987873,123.37,123.36,4.2939]
[1743804822502,13.34267384,123.37,123.36,4.2939]
[1743804822703,16.82735939,123.37,123.36,4.2939]
[1743804824499,13.34267384,123.37,123.36,4.2939]
[1743804826305,16.82517815,123.37,123.36,4.2939]
[1743804826506,8.1087,123.37,123.36,4.2939]
[1743804826702,11.59112416,123.37,123.36,4.2939]
[1743804826902,8.1087,123.37,123.36,4.2939]
[1743804827804,3.48192032,123.37,123.36,4.2939]
[1743804828103,8.16048066,123.38,123.36,4.2939]
[1743804828503,5.75838417,123.37,123.36,12.4033]
[1743804830604,13.86708417,123.37,123.36,2.165]
[1743804830800,5.75838417,123.37,123.36,2.165]
[1743804831204,8.16058066,123.38,123.36,2.165]
[1743804831401,0.05208066,123.38,123.37,8.1087]
[1743804831595,10.67678752,123.41,123.37,8.1087]
[1743804831907,10.67678752,123.39,123.36,4.2544]
[1743804832200,8.1094,123.36,123.35,2.2392]
[1743804832398,8.1094,123.36,123.34,37.0504]
[1743804832399,8.1094,123.36,123.34,28.94]
[1743804832708,18.78698752,123.35,123.34,0.05747294]
[1743804832900,22.26751255,123.35,123.32,2.0894]
[1743804833099,18.78698752,123.35,123.33,0.05424515]
[1743804833804,10.67678752,123.35,123.33,8.16524515]
[1743804835506,18.78578752,123.37,123.33,0.05424515]
[1743804835804,18.78578752,123.37,123.34,8.1101]
[1743804836308,8.1094,123.36,123.34,8.1101]
[1743804837006,18.78588752,123.37,123.34,8.1101]
[1743804837511,10.67678752,123.37,123.33,8.16514515]
[1743804838409,8.11,123.36,123.33,8.16514515]
[1743804839504,10.67678752,123.37,123.33,8.16524515]
[1743804839722,10.67678752,123.37,123.33,0.05424515]
[1743804840212,8.1107,123.34,123.33,0.05424515]
[1743804840508,10.67678752,123.37,123.33,0.05424515]
[1743804841811,8.1086,123.38,123.35,8.1098]
[1743804842199,8.1086,123.38,123.35,8.17167812]
[1743804843095,8.1086,123.38,123.36,8.1094]
[1743804843302,18.78448752,123.39,123.36,8.1094]
[1743804844110,10.67678752,123.39,123.37,8.1085]
[1743804844326,8.1071,123.4,123.37,8.1085]
[1743804844917,8.1076,123.39,123.36,18.78578752]
[1743804845221,10.67678752,123.41,123.35,29.00187812]
[1743804845417,10.67678752,123.39,123.35,29.00187812]
[1743804845616,8.1087,123.38,123.35,37.11157812]
[1743804845814,8.1087,123.38,123.35,8.17157812]
[1743804849018,8.1087,123.38,123.35,0.06187812]
[1743804850017,8.1087,123.38,123.36,8.1094]
[1743804850318,10.67678752,123.39,123.36,8.1094]
[1743804850518,10.67678752,123.41,123.36,10.67678752]
[1743804850718,9.08229483,123.4,123.37,8.1081]
[1743804851018,8.107,123.4,123.37,0.06164412]
[1743804851225,8.107,123.4,123.37,8.17004412]
[1743804854221,8.1074,123.39,123.37,8.17004412]
[1743804854422,10.67678752,123.41,123.37,8.17004412]
[1743804854618,9.08272639,123.4,123.37,8.17004412]
[1743804854822,8.1073,123.4,123.37,8.17004412]
[1743804857229,8.1075,123.39,123.37,8.17004412]
[1743804862732,8.1075,123.39,123.37,0.06164412]
[1743804863230,10.67678752,123.41,123.37,0.06164412]
[1743804863433,9.08546046,123.4,123.37,0.06164412]
[1743804863730,9.08546046,123.39,123.37,0.06164412]
[1743804864030,10.67678752,123.41,123.37,0.06164412]
[1743804864232,9.0862524,123.4,123.37,0.06164412]
[1743804864424,17.1942524,123.39,123.37,0.06164412]
[1743804864626,8.108,123.39,123.37,0.06164412]
[1743804866029,5.66138862,123.38,123.37,0.06164412]
[1743804866934,5.66154774,123.38,123.37,0.06164412]
[1743804867834,13.76964774,123.38,123.37,0.06164412]
[1743804871940,17.19560153,123.38,123.37,0.06164412]
[1743804872236,17.19555573,123.38,123.37,0.06164412]
[1743804872437,13.76975509,123.38,123.37,0.06164412]
[1743804874438,17.19573694,123.38,123.37,0.06164412]
[1743804875126,13.76975509,123.38,123.37,0.06164412]
[1743804876239,13.76961471,123.38,123.37,0.06164412]
[1743804876429,8.1081,123.38,123.37,0.06164412]
[1743804877840,13.76965307,123.38,123.37,0.06164412]
[1743804879133,26.09650255,123.44,123.37,28.98164412]
[1743804879328,9.08983819,123.43,123.38,10.67678752]
[1743804879526,26.09650255,123.44,123.39,8.1072]
[1743804879527,17.19583819,123.42,123.39,8.1072]
[1743804879738,9.08983819,123.41,123.39,8.16501893]
[1743804880038,8.106,123.42,123.39,8.16501893]
[1743804880231,3.42753997,123.41,123.39,8.16501893]
[1743804880430,8.106,123.42,123.39,8.16501893]
[1743804880632,3.42699925,123.41,123.4,8.1068]
[1743804881236,8.106,123.42,123.4,8.1068]
[1743804881738,3.42707036,123.41,123.4,8.1068]
[1743804882241,8.106,123.42,123.39,8.16491893]
[1743804883635,8.1045,123.44,123.4,39.59678752]
[1743804883842,8.1045,123.44,123.42,10.67678752]
[1743804884242,8.1045,123.44,123.42,18.83784203]
[1743804884742,8.1039,123.45,123.42,18.83784203]
[1743804887043,8.103,123.46,123.43,37.0247]
[1743804887341,10.67678752,123.48,123.43,37.0247]
[1743804887545,8.1029,123.46,123.43,37.0247]
[1743804888048,8.1037,123.45,123.43,28.92]
[1743804888248,10.67678752,123.48,123.43,28.92]
[1743804888443,3.41863621,123.47,123.43,28.92]
[1743804888641,8.1033,123.46,123.43,28.92]
[1743804888937,8.1033,123.46,123.43,37.0245]
[1743804889137,8.1025,123.47,123.44,10.67678752]
[1743804889542,8.1025,123.47,123.44,18.83688503]
[1743804890252,8.1029,123.46,123.44,18.83688503]
[1743804891343,8.1029,123.46,123.44,10.73308503]
[1743804894252,8.1035,123.45,123.44,0.05629751]
[1743804895148,8.1032,123.46,123.44,0.05629751]
[1743804896148,8.1026,123.47,123.44,0.05629751]
[1743804896349,8.1026,123.47,123.44,8.16039751]
[1743804896754,8.1026,123.47,123.44,0.05629751]
[1743804897056,8.103,123.46,123.44,0.05629751]
[1743804898755,8.103,123.46,123.44,8.16029751]
[1743804899258,8.103,123.46,123.44,0.05629751]
[1743804900557,8.1035,123.45,123.44,0.05629751]
[1743804901862,18.77998752,123.46,123.44,0.05629751]
[1743804902357,8.1032,123.46,123.44,0.05629751]
[1743804902958,8.1032,123.46,123.44,8.16019751]
[1743804903152,8.1025,123.47,123.44,0.05629751]
[1743804903346,39.57678752,123.48,123.44,0.05629751]
[1743804903544,39.57678752,123.48,123.44,8.16019751]
[1743804904055,8.1032,123.46,123.44,8.16019751]
[1743804904273,3.40909533,123.47,123.44,0.05629751]
[1743804904451,39.57678752,123.48,123.44,0.05629751]
[1743804904744,3.40907925,123.47,123.44,0.05629751]
[1743804904948,8.1035,123.45,123.44,0.05629751]
[1743804905341,39.57678752,123.48,123.44,0.05629751]
[1743804905557,8.1032,123.46,123.44,0.05629751]
[1743804906059,8.1035,123.45,123.44,0.05629751]
[1743804907455,8.1032,123.46,123.44,0.05629751]
[1743804909362,8.1035,123.45,123.44,0.05629751]
[1743804913357,11.51530275,123.45,123.44,0.05629751]
[1743804915079,3.41180275,123.45,123.44,0.05629751]
[1743804915376,10.67678752,123.48,123.44,10.73308503]
[1743804915573,3.41301498,123.47,123.45,8.1029]
[1743804915772,18.77868752,123.48,123.45,8.1029]
[1743804915972,3.4130131,123.47,123.45,8.1029]
[1743804916186,18.77868752,123.48,123.45,8.1029]
[1743804916478,11.51585655,123.47,123.45,8.1029]